Cogmind - Beta 16.1 @@@ ROGUE MODE // 2026.02.19 @ 17:58:26 Player: Jusztin Result: Self-destructed Performance ------------- Evolutions (1) 500 Regions Visited (2) 400 Robots Destroyed (41) 205 Value Destroyed (969) 969 Prototype IDs (0) 0 Alien Tech Used (0) 0 Bonus (0) 0 TOTAL SCORE: 2074 Bonus ------- None Cogmind --------- Core Integrity 161/400 Matter 188/300 Energy 100/100 System Corruption 20% Temperature Warm (110) Movement Core (400) Ox7 Location -9/Materials Parts ------- > --- POWER (1) -------- (None) > --- PROPULSION (2) --- (None) > --- UTILITY (4) ------ Large Storage Unit Improved Light Armor Plating > --- WEAPON (2) ------- Light Assault Rifle > --- INVENTORY (15) --- Improved Ion Engine Light Treads Weight Redist. System Terrain Scan Processor Improved Light Armor Plating Hacking Suite Hacking Suite Hacking Suite Light Assault Rifle Rocket Launcher Improved Datajack Plasma Cutter Peak State ------------ > --- POWER ------------ Light Ion Engine > --- PROPULSION ------- Light Treads Light Treads > --- UTILITY ---------- Large Storage Unit Improved Light Armor Plating Improved Light Armor Plating Hacking Suite > --- WEAPON ----------- Light Assault Rifle Light Assault Rifle > --- INVENTORY -------- Improved Ion Engine Light Treads Weight Redist. System Structural Scanner Terrain Scan Processor Improved Light Armor Plating Improved Light Armor Plating Hacking Suite Hacking Suite Hacking Suite Light Assault Rifle Light Assault Rifle Rocket Launcher Datajack Improved Datajack [Rating: 18] Favorites ----------- Power Ion Engine Engine Ion Engine Propulsion Light Treads Treads Light Treads Leg Aluminum Leg Utility Large Storage Unit Device Terrain Scanner Storage Large Storage Unit Hackware Hacking Suite Protection Improved Light Armor Plating Weapon Light Assault Rifle Energy Gun Small Laser Ballistic Gun Light Assault Rifle Ballistic Cannon Light Cannon Special Melee Weapon Datajack Build | -11 -10 -9 ------- Run | Yrd Mat Mat Slots Evolved 2 | . . 2 Power . | . . . Propulsion . | . . . Utility 2 | . . 2 Weapon . | . . . Parts Attached 31 | 8 5 18 Power 2 | 1 . 1 Engine 2 | 1 . 1 Core . | . . . Reactor . | . . . Propulsion 9 | 3 . 6 Treads 6 | 2 . 4 Leg 3 | 1 . 2 Wheel . | . . . Hover . | . . . Flight . | . . . Utility 12 | 2 4 6 Device 3 | 1 1 1 Storage 4 | 1 3 . Processor . | . . . Hackware 1 | . . 1 Protection 4 | . . 4 Artifact . | . . . Weapon 8 | 2 1 5 Energy Gun 1 | 1 . . Energy Cannon . | . . . Ballistic Gun 5 | 1 . 4 Ballistic Cannon 1 | . 1 . Launcher . | . . . Special Weapon . | . . . Impact Weapon . | . . . Slashing Weapon . | . . . Piercing Weapon . | . . . Special Melee Weapon 1 | . . 1 Unidentified Prototypes . | . . . Parts Lost 12 | . . 12 Power 2 | . . 2 Propulsion 3 | . . 3 Utility 4 | . . 4 Weapon 3 | . . 3 Highest Loss Streak 8 | . . 8 To Critical Strikes . | . . . Average Backups 10 | 1 7 14 Power . | . . . Propulsion 1 | . 1 1 Utility 4 | . 1 7 Weapon 2 | 1 3 2 Tool/Special . | . . . Unused Backups 19 | . 1 18 Power 1 | . . 1 Propulsion 1 | . . 1 Utility 9 | . . 9 Weapon 6 | . 1 5 Tool/Special 2 | . . 2 Average Slot Usage (%) 98 | . 100 97 Engine 11 | . 14 9 Treads 23 | . 28 20 Leg 1 | . . 1 Device 8 | . 14 4 Storage 12 | . 14 11 Hackware 6 | . . 10 Protection 10 | . . 17 Energy Gun 2 | . 6 . Ballistic Gun 18 | . 14 21 Ballistic Cannon 3 | . 7 . Peak Build Rating 18 | 7 8 18 Average Rating 11 | 5 7 15 On Entrance 5 | . 7 8 Avg Prop Armor Cover (%) 24 | 24 . . Naked Turns . | . . . Heaviest Build 90 | 13 90 33 Greatest Support 40 | 40 40 40 Greatest Overweight (x) 2 | . 2 1 Average Overweight (x) . | . . . Largest Inventory Capacity 25 | 8 25 15 Average Capacity 13 | 7 11 15 Most Carried 15 | 2 14 15 Average Carried 10 | 1 7 14 Final Capacity 15 | 8 15 15 Final Carried 14 | 2 14 12 Class Distribution -------------------- 73% | Mutant 26% | Scavenger-Mutant Dominant Class ---------------- Mutant | -10/Materials Mutant | -9/Materials Resources | -11 -10 -9 ----------- Run | Yrd Mat Mat Matter Collected 817 | 289 169 359 Remotely . | . . . Salvage Created 1581 | 180 404 997 Parts 106 | 12 29 65 Haulers Intercepted 3 | . 1 2 Recyclers Shooed 1 | . 1 . Parts Field Recycled . | . . . Retrieved Matter . | . . . Parts Self-Destructed . | . . . Prevented . | . . . Parts Restored . | . . . Kills | -11 -10 -9 ------- Run | Yrd Mat Mat Combat Hostiles Destroyed 27 | . 8 19 Guns 24 | . 5 19 Cannons 3 | . 3 . Classes Destroyed 10 | 2 4 4 Builder 2 | . . 2 Tunneler 4 | 4 . . Hauler 3 | . 1 2 Recycler 2 | 1 1 . Operator 1 | . . 1 Watcher 2 | . 1 1 Swarmer 7 | . 3 4 Grunt 12 | . 5 7 Brawler 1 | . . 1 Sentry 7 | . . 7 Best Kill Streak 8 | 4 4 8 Combat Bots Only 6 | . 4 6 Max Kills in Single Turn 1 | 1 1 1 Gunslinging . | . . . Exploded . | . . . Melee . | . . . Uniques/NPCs Destroyed . | . . . Combat | -11 -10 -9 -------- Run | Yrd Mat Mat Hostile Shots Fired 253 | . 48 205 Missed 79 | . 14 65 Hits 174 | . 34 140 Melee 10 | . . 10 Projectile 164 | . 34 130 Critical Strikes 4 | . . 4 Damage Taken 2192 | . 396 1796 Core 270 | . 31 239 Absorbed by Shields . | . . . Redirected to Shielding 14 | . . 14 Core Remaining (%) 93 | 100 87 . Volleys Fired 180 | 11 40 129 Largest 2 | 2 2 2 Hottest 60 | 60 60 43 Shots Fired 355 | 22 77 256 Gun 344 | 22 66 256 Cannon 11 | . 11 . Launcher . | . . . Special . | . . . Kinetic 318 | 11 51 256 Thermal 37 | 11 26 . Explosive . | . . . Electromagnetic . | . . . Robot Hit Streak 13 | 7 11 13 Robot Miss Streak 5 | 4 3 5 Penetration Max . | . . . Secondary Targets 4 | . 1 3 Max Gunslinging Chain 1 | . 1 1 Shots Hit Robots 221 | 12 42 167 Core Hits 95 | 6 22 67 Critical Kills . | . . . Critical Parts Destroyed 1 | . . 1 Critical Strikes 1 | . . 1 Destroy 1 | . . 1 Melee Attacks 3 | . . 3 Impact . | . . . Slashing . | . . . Piercing . | . . . Sneak Attacks 3 | . . 3 Combat Hostiles . | . . . Follow-up Attacks . | . . . Damage Inflicted 2135 | 120 476 1539 Guns 2016 | 120 357 1539 Cannons 119 | . 119 . Explosions . | . . . Melee . | . . . Ramming . | . . . Kinetic 1874 | 33 302 1539 Thermal 261 | 87 174 . Explosive . | . . . Electromagnetic . | . . . Impact . | . . . Slashing . | . . . Piercing . | . . . Highest Corruption 17 | . 2 17 Average Corruption 2 | . 1 8 Corruption Purged . | . . . Corruption Blocked . | . . . Effects 10 | . 9 1 Message Errors 1 | . 1 . Matter Fused 4 | . 4 . Heat Flow Errors 2 | . 1 1 Energy Discharges 2 | . 2 . Data Loss (major) 1 | . 1 . Overload Shots . | . . . Overflow Damage . | . . . Projectiles . | . . . Explosions . | . . . Melee . | . . . Knockbacks 1 | . 1 . Impact . | . . . Kinetic 1 | . 1 . Secondary . | . . . Self-Inflicted Damage . | . . . Shots . | . . . Rammed . | . . . Targets Rammed . | . . . Kicked . | . . . Crushed . | . . . Highest Temperature 258 | 40 258 26 Average Temperature 35 | 18 61 6 Received Heat Transfer 741 | . 144 597 Siege Activations . | . . . Martial Activations . | . . . Shielding Activations . | . . . Robots Disrupted . | . . . Combat Hostiles . | . . . Robots Corrupted . | . . . Combat Hostiles . | . . . Parts Fried . | . . . Impact Corruptions . | . . . Robots Melted . | . . . Combat Hostiles . | . . . Parts Melted . | . . . Heat Transferred 600 | 200 400 . Parts Sabotaged . | . . . Parts Stolen . | . . . Parts Stripped . | . . . Power Chain Reactions . | . . . Alert | -11 -10 -9 ------- Run | Yrd Mat Mat Maximum Alert Level . | . . . Low Security (%) 100 | 100 100 100 Level 1 . | . . . Level 2 . | . . . Level 3 . | . . . Level 4 . | . . . Level 5 . | . . . High Security . | . . . Max Security . | . . . Peak Influence 171 | 10 89 171 Initial . | . . . Average 54 | 1 22 84 Influence Increases 824 | 25 258 541 Destroy 0b10 Robot/C 540 | . 160 380 Destroy 0b10 Robot/NC 70 | 25 15 30 Destroy Leader 160 | . 34 126 Successful Hack 39 | . 34 5 Disable Machine 15 | . 15 . Influence Decreases 735 | 25 258 452 Time Decay 625 | 25 258 342 Lost Part 110 | . . 110 Squads Dispatched 5 | . 1 4 Investigation 3 | . 1 2 Extermination . | . . . Reinforcement 2 | . . 2 Assault . | . . . Garrison . | . . . Intercept . | . . . Searches Triggered . | . . . Construction Impeded . | . . . Haulers Reinforced . | . . . Active Scanning Responses . | . . . Cargo Convoy Interrupts . | . . . Stealth | -11 -10 -9 --------- Run | Yrd Mat Mat Distress Signals 4 | . 1 3 Communications Jammed . | . . . Distress Signals . | . . . Times Spotted 50 | . 10 40 Peak Tracking Total 7 | . 4 7 Tactical Retreats . | . . . Traps | -11 -10 -9 ------- Run | Yrd Mat Mat Traps Triggered 3 | . 3 . Indirectly . | . . . Trap Hack Attempts . | . . . Triggered . | . . . Disarmed . | . . . Reprogrammed . | . . . Reused . | . . . Traps Extracted . | . . . Installed . | . . . Triggered . | . . . Machines | -11 -10 -9 ---------- Run | Yrd Mat Mat Machines Disabled 1 | . 1 . Max in Single Turn 1 | . 1 . Machines Repaired . | . . . Machines Dismantled . | . . . Machines Sabotaged . | . . . Overloaded Fab Kills . | . . . Hacking | -11 -10 -9 --------- Run | Yrd Mat Mat Machines Accessed 9 | . 4 5 Terminals 9 | . 4 5 Fabricators . | . . . Repair Stations . | . . . Recycling Units . | . . . Scanalyzers . | . . . Garrison Access . | . . . Total Hacks 25 | . 11 14 Successful 10 | . 5 5 Failed 15 | . 6 9 Catastrophic . | . . . Database Lockouts . | . . . Manual 2 | . . 2 Terminals 25 | . 11 14 Fabricators . | . . . Repair Stations . | . . . Recycling Units . | . . . Scanalyzers . | . . . Garrison Access . | . . . Terminal Hacks 10 | . 5 5 Record 3 | . 1 2 Branch Access Points 1 | . . 1 Terminal Index 1 | . . 1 Alert Level 1 | . . 1 Maintenance Status 1 | . 1 . Transport Status 1 | . 1 . Hauler Manifests 1 | . 1 . Zone Layout 1 | . 1 . Fabricator Hacks . | . . . Repair Station Hacks . | . . . Recycling Unit Hacks . | . . . Scanalyzer . | . . . Garrison Access Hacks . | . . . Unauthorized Hacks . | . . . Terminals . | . . . Fabricators . | . . . Repair Stations . | . . . Recycling Units . | . . . Scanalyzers . | . . . Garrison Access . | . . . Data Cores Recovered . | . . . Used . | . . . Hacking Detections 9 | . 4 5 Full Trace Events 4 | . 2 2 Feedback Events . | . . . Feedback Blocked . | . . . Robot Schematics Acquired . | . . . Robots Built . | . . . Authchips . | . . . Time . | . . . Total Robot Build Rating . | . . . Part Schematics Acquired . | . . . Parts Built . | . . . Authchips . | . . . Time . | . . . Total Part Build Rating . | . . . Part Studies Acquired . | . . . Parts Repaired . | . . . Time . | . . . Parts Recycled . | . . . Recycled Matter . | . . . Retrieved Matter . | . . . Retrieved Components . | . . . Parts Scanalyzed . | . . . Part Schematics Acquired . | . . . Parts Damaged . | . . . Bothacking | -11 -10 -9 ------------ Run | Yrd Mat Mat Used RIF Installer . | . . . Robots Hacked 1 | . . 1 Non-combat 1 | . . 1 Combat . | . . . Robot Hacks Applied 3 | . . 3 parse_system 1 | . . 1 no_distress 1 | . . 1 find_recycling 1 | . . 1 Relay Couplers Released . | . . . Fabnet Peak Effective % . | . . . Robots Rewired . | . . . Allies Hacked . | . . . Hacks Repelled . | . . . Allies | -11 -10 -9 -------- Run | Yrd Mat Mat Total Allies . | . . . Largest Group . | . . . Highest-Rated Group . | . . . Highest-Rated Ally . | . . . Total Orders . | . . . Ally Attacks . | . . . Total Damage . | . . . Kills . | . . . Allies Corrupted . | . . . Allies Melted . | . . . Intel | -11 -10 -9 ------- Run | Yrd Mat Mat Active Infowar (turns) 1340 | 78 801 461 Terrain 509 | . 488 21 Structural 440 | . . 440 Seismic 391 | 78 313 . Robot Analysis Total . | . . . Derelict Logs Recovered . | . . . Drone Launches . | . . . Drone Recoveries . | . . . Exploration | -11 -10 -9 ------------- Run | Yrd Mat Mat Turns Passed 2086 | 158 801 1127 Spaces Moved 935 | 74 411 450 Core 3 | 3 . . Treads 911 | 68 411 432 Legs 21 | 3 . 18 Wheels . | . . . Hover . | . . . Flight . | . . . Fastest Speed 50 | 50 160 160 Average Speed 160 | 153 161 161 Slowest Speed 320 | 160 320 240 Overloaded Moves . | . . . Propulsion Burnouts . | . . . Robots Hopped . | . . . Potential Cave-ins . | . . . Cave-ins Triggered . | . . . Exploration Rate (%) 32 | 5 48 44 Regions Visited 2 Branch Regions . Pre-discovered Areas . | . . . Known Exits Taken . | . . . Unknown Exits Taken 2 | 1 1 . Scrap Searched . | . . . Spaces Dug . | . . . Terrain Destroyed . | . . . Melee . | . . . Projectile . | . . . AOE . | . . . Terrain Rammed . | . . . Walls Destroyed . | . . . Machines Disabled . | . . . Actions | -11 -10 -9 --------- Run | Yrd Mat Mat Total 1214 | 94 479 641 Wait 8 | . 3 5 Move 933 | 73 410 450 Hop . | . . . Pick Up 33 | 2 15 16 Fast Attach 13 | 7 1 5 Attach 9 | . . 9 Detach . | . . . Swap 13 | 1 5 7 Drop 22 | . 5 17 Fire 180 | 11 40 129 Melee 3 | . . 3 Ram . | . . . Kick . | . . . Crush . | . . . Escape Stasis . | . . . Rewire . | . . . Trap . | . . . Miscellaneous . | . . . Route ------- -11/Scrapyard -10/Materials (discovered 3 exits: *Mat x2 / [*Min]) -9/Materials (discovered 5 exits: [*Mat x2] / Min x2 / Sto) History --------- Turn | Location | Event 10 | -11/Scrapyard | Discovered new exit (range 15) 159 | -11/Scrapyard | Entered Materials 262 | -10/Materials | Discovered new exit (range 14) 305 | -10/Materials | Build established: Mutant 315 | -10/Materials | Discovered new exit (range 5) 436 | -10/Materials | Discovered new exit (range 14) 960 | -10/Materials | Entered another Materials area 960 | -9/Materials | Evolved 2 slots: Utility x2 1055 | -9/Materials | Identified exit to Mines 1055 | -9/Materials | Identified exit to Storage 1318 | -9/Materials | Discovered new exit (range 15) 1552 | -9/Materials | Discovered new exit (range 6) 1796 | -9/Materials | Build established: Scavenger-Mutant 2043 | -9/Materials | Core integrity fell below 50% 2079 | -9/Materials | System corruption reached 10% 2087 | -9/Materials | Self-destructed Last Messages --------------- 02047_ K-01 Serf collects debris. 02059_ Critical hit (Smash). 02059_ Imp. Light Armor Plating destroyed. 02059_ System corrupted by crushing effect (+4). 02062_ Structural Scanner destroyed. 02062_ System corrupted by crushing effect (+3). 02062_ K-01 Serf collects debris. 02078_ Imp. Light Armor Plating destroyed. 02078_ System corrupted by crushing effect (+4). 02080_ K-01 Serf collects debris. 02081_ Hvy. Assault Rifle destroyed. 02081_ System corrupted by crushing effect (+2). 02084_ Destroyed Lgt. Armor Plating. 02084_ Lgt. Treads destroyed. 02084_ System corrupted by crushing effect (+4). 02084_ K-01 Serf collects debris. 02087_ System corrupted: Heat flow error (+110). 02087_ Hacking Suite destroyed. 02087_ System corrupted by crushing effect (+3). 02087_ K-01 Serf collects debris. Map ----- +----------------------------------------------------+ | # # #??????????????????????????????? | | # # """ #??????????????????????????????? | | + + """ #??????????????????????????????? | | "T" # # """ #??????????????????????????????? | | """ # # #??????????????????????????????? | | ######## ########??????????????????????????????? | | ?????## ##???????????????????????????????????? | | ?????## [ % ##??????? ???????????????????? | | ?????## % #############+####???????????????????? | | ?????## ########### ##???????????????????? | | ?????## % r = ##???????????????????? | | ?????### ############a % ##???????????????????? | | ?????### ############ m ##???????????????????? | | ??????## ##????????## ##???????????????????? | | ??????## ##????????### ###???????????????????? | | ??????## ##????????### ###???????????????????? | | ??????## %#####??????##k ##????????????????????? | | ??????## ######?????## ##????????????????????? | | ??????## !###?????## ##????????????????????? | | ??????## !##????### ###???????????????????? | | ##????## !##????### ###### ##??????? | | ##????## !##????## ##########+### ??????? | | ##????## !##????## [* !% ?????? | | ##????## !###????## % /[*gkg g ?????? | | ##????## ######????## b%%%[g ?????? | | # ???? # #####?????## @**##########+##????????? | | # ???? # ##????????############ ????????? | | # ???? # ##????????#########???????????????????? | | # ???? + #####?????????????????????????????????? | | # ???? # ### #######???????????????????????????? | | # # # #???????????????????????????? | | ######## # = "" #???????????????????????????? | | # """ #???????????????????????????? | | ! + =! S" #???????????????????????????? | | %= "T" # !! #???????????????????????????? | | # # #???????????????????????????? | | # # #???????????????????????????? | | # !! # #???????????????????????????? | | # !! ###########???????????????????????????? | | # %!! !/ # ##?????????????????????????????? | | # !! # "" ##?????????????????????????????? | | # !! % # """ ##?????????????????????????????? | | ######## %+ S" ###########????????????????????? | | ######## # # #????????????????????? | | ##????## # # "" #?????????????????????? | | ##????## #####+## "Y == #?????????????????????? | | ##????## # ""=== #?????????????????????? | | ??????## + !% == #?????????????????????? | | ??????## # ![ #?????????????????????? | | ??????#####+### # #?????????????????????? | +----------------------------------------------------+ Best States ------------- Heat Dissipation 28 Energy Generation 10 Energy Capacity 250 Matter Stores 300 Matter Capacity 300 Sight Range 16 Terrain Scan Range 14 Terrain Scan Density 10 Armor Coverage 300 Utility Shielding 33 Evasion (%) 40 Recoil Reduction 2 Offensive Hacking 10 Item Schematics ----------------- None Robot Schematics ------------------ None Fabricated ------------ Nothing Repaired ---------- Nothing Studied --------- None Alien Tech Used ----------------- None Achievements -------------- DATA ERROR: Steam Global Achievement% Junior Dev Organ Harvest There's More Where That Came From Challenges ------------ None Game ------ Seed ClaymoresPhasingDeck Manual? 0 Play Time 00:31:05 Cumulative 25.7 hours Start 2026.02.19 @ 17:26:45 End 2026.02.19 @ 17:58:26 Sessions 1 Manual Loads 0 Difficulty Rogue Special Mode None Game No. 38 Rogue 38 Adventurer 0 Explorer 0 Win Type - Total 0 Types 0/0/0/0/0/0/0/0/0/0 Lore% 11 Gallery% 21 Achievement% 12 Wizard Run 0 Options --------- Layout 1 ASCII 0 Keyboard 0 Movement Mouse Keybinds 0 Fullscreen 2 Font 24/Smallcaps Map View 50x35 Zoom Use 0% Tactical HUD 1 Map Filters NONE Filters NONE Steam 1 RUN: d9d6ee80-3afe-4ebf-9198-eb71d855bdaa